bitfinex/quotes_BTCUSD_20251230
["timestamp","ask_amount","ask_price","bid_price","bid_amount"]
[1767133522948,0.44924132,88462.0,88452.0,0.0113979]
[1767133523374,0.44924132,88462.0,88452.0,9.234e-05]
[1767133523579,0.44924132,88462.0,88451.0,0.0074997]
[1767133523819,0.44930964,88462.0,88452.0,0.01130556]
[1767133524020,0.44930964,88462.0,88451.0,0.0074997]
[1767133524203,0.44930964,88462.0,88452.0,0.01130556]
[1767133524735,0.44930964,88462.0,88451.0,0.0074997]
[1767133525265,0.44930964,88462.0,88451.0,0.01130569]
[1767133525616,6.832e-05,88462.0,88450.0,0.01130582]
[1767133525778,0.44924132,88461.0,88451.0,0.01130569]
[1767133525995,0.44924132,88461.0,88450.0,0.01130582]
[1767133526191,0.44924132,88461.0,88449.0,0.06798393]
[1767133526440,0.44924132,88461.0,88450.0,0.01130582]
[1767133526615,0.44924132,88461.0,88449.0,0.0001483]
[1767133526815,0.44924132,88461.0,88449.0,0.01145425]
[1767133527838,0.44924132,88461.0,88451.0,0.01130569]
[1767133528039,0.44924132,88461.0,88450.0,0.01130582]
[1767133528240,0.44924132,88461.0,88451.0,0.01130569]
[1767133529236,0.44924132,88461.0,88450.0,0.01130582]
[1767133530429,0.44924132,88461.0,88449.0,0.0114683]
[1767133530636,0.44924132,88461.0,88449.0,0.02277425]
[1767133531330,0.44924132,88461.0,88449.0,0.0114683]
[1767133531735,0.44924132,88461.0,88449.0,0.02277425]
[1767133531930,0.44924132,88461.0,88450.0,0.01130582]
[1767133532918,0.44924132,88461.0,88449.0,0.02277425]
[1767133533123,0.44924132,88461.0,88450.0,0.01130582]
[1767133533325,0.44924132,88461.0,88451.0,0.01130569]
[1767133533520,0.44924132,88461.0,88450.0,0.01130582]
[1767133533728,0.44924132,88461.0,88449.0,0.02277425]
[1767133534782,0.44924132,88461.0,88450.0,0.01130582]
[1767133535128,0.44924132,88461.0,88451.0,0.01130569]
[1767133535526,0.44924132,88461.0,88450.0,0.01130582]
[1767133535968,0.44924132,88461.0,88451.0,0.14826]
[1767133536180,0.44924132,88461.0,88451.0,0.15956569]
[1767133537082,0.44924132,88461.0,88452.0,0.01130556]
[1767133537241,0.44924132,88461.0,88453.0,0.14826]
[1767133538452,0.44924132,88461.0,88453.0,0.14539933]
[1767133538898,6.832e-05,88462.0,88453.0,0.14539933]
[1767133542948,6.832e-05,88462.0,88450.0,0.01130582]
[1767133542949,6.832e-05,88462.0,88449.0,0.07930361]
[1767133543083,6.832e-05,88462.0,88451.0,0.01130569]
[1767133543274,6.832e-05,88462.0,88452.0,0.01130556]
[1767133543474,6.832e-05,88462.0,88451.0,0.01130569]
[1767133543874,6.832e-05,88462.0,88451.0,0.06783393]
[1767133544078,6.832e-05,88462.0,88452.0,0.15956556]
[1767133544519,6.832e-05,88462.0,88452.0,0.14826]
[1767133545453,6.832e-05,88462.0,88452.0,0.15956556]
[1767133545799,6.832e-05,88462.0,88452.0,0.14826]
[1767133553426,6.832e-05,88462.0,88449.0,0.02277425]
[1767133554286,6.832e-05,88462.0,88449.0,0.15902425]
[1767133554490,6.832e-05,88462.0,88449.0,0.1477183]
[1767133554814,0.4493047,88460.0,88449.0,0.15902425]
[1767133555189,0.4493047,88460.0,88449.0,0.1477183]
[1767133555371,0.4493047,88460.0,88451.0,0.01130569]
[1767133555579,0.4493047,88460.0,88449.0,0.15902425]
[1767133555800,0.4493047,88460.0,88450.0,0.01130582]
[1767133556010,0.4493047,88460.0,88449.0,0.15902425]
[1767133556888,0.4493047,88460.0,88449.0,0.1477183]
[1767133557210,0.4493047,88460.0,88449.0,0.15902425]
[1767133558944,0.4493047,88460.0,88450.0,0.01132]
[1767133559305,0.01130518,88455.0,88449.0,0.0001483]
[1767133559531,0.14136,88453.0,88449.0,0.0001483]
[1767133561189,0.14136,88453.0,88444.0,0.01132]
[1767133561509,0.14136,88457.0,88444.0,0.01132]
[1767133562654,0.4493047,88454.0,88440.0,0.0227754]
[1767133562847,0.01130518,88455.0,88440.0,0.0227754]
[1767133562848,0.4493047,88450.0,88440.0,0.0227754]
[1767133563012,0.4493047,88450.0,88440.0,0.0114683]
[1767133563366,0.4493047,88450.0,88440.0,0.0227754]
[1767133563590,0.4493047,88450.0,88441.0,0.01130697]
[1767133564158,0.14836,88451.0,88442.0,0.01130684]
[1767133564565,0.14836,88451.0,88441.0,0.01130697]
[1767133565660,0.14836,88451.0,88440.0,0.0227754]
[1767133566103,0.14836,88451.0,88441.0,0.01130697]
[1767133566904,0.5976647,88451.0,88441.0,0.01130697]
[1767133567201,0.5976647,88451.0,88442.0,0.01130684]
[1767133567647,0.5976647,88451.0,88441.0,0.01130697]
[1767133567793,0.4493047,88451.0,88441.0,0.01130697]
[1767133568191,0.4493047,88451.0,88443.0,0.01130671]
[1767133568924,0.4493047,88451.0,88442.0,0.01130684]
[1767133569237,0.4493047,88451.0,88444.0,0.01130658]
[1767133569916,0.14836,88456.0,88444.0,0.01130658]
[1767133571076,0.14836,88456.0,88444.0,0.0084456]
[1767133571265,0.14836,88456.0,88443.0,0.01130671]
[1767133571839,0.14836,88456.0,88444.0,0.01130658]
[1767133572079,0.14836,88456.0,88443.0,0.01130671]
[1767133572578,0.14836,88456.0,88444.0,0.01130658]
[1767133573147,0.14836,88456.0,88443.0,0.01130671]
[1767133574057,0.14836,88456.0,88444.0,0.01130658]
[1767133574837,0.01132,88457.0,88456.0,0.00055]
[1767133575042,6.832e-05,88462.0,88456.0,0.00055]
[1767133575274,6.832e-05,88462.0,88454.0,0.01130531]
[1767133575493,6.832e-05,88462.0,88453.0,0.01130543]
[1767133575992,6.832e-05,88462.0,88452.0,0.01130556]
[1767133584599,6.832e-05,88462.0,88453.0,0.01130543]
[1767133585038,6.832e-05,88462.0,88454.0,0.01130531]
[1767133587735,6.832e-05,88462.0,88455.0,0.01130518]
[1767133588183,6.832e-05,88462.0,88455.0,0.0084446]
[1767133588557,6.832e-05,88462.0,88454.0,0.01130531]
[1767133591688,6.832e-05,88462.0,88456.0,0.01130505]
[1767133591871,6.832e-05,88462.0,88455.0,0.01130518]
[1767133592305,6.832e-05,88462.0,88454.0,0.01130531]
[1767133592504,6.832e-05,88462.0,88453.0,0.01130543]
[1767133593091,6.832e-05,88462.0,88454.0,0.01130531]
[1767133593296,6.832e-05,88462.0,88453.0,0.01130543]
[1767133594890,6.832e-05,88462.0,88454.0,0.01130531]
[1767133595285,6.832e-05,88462.0,88455.0,0.01130518]
[1767133595490,6.832e-05,88462.0,88454.0,0.01130531]
[1767133597190,6.832e-05,88462.0,88455.0,0.01130518]
[1767133601429,6.832e-05,88462.0,88454.0,0.01130531]
[1767133603003,6.832e-05,88462.0,88455.0,0.01130518]
[1767133604203,6.832e-05,88462.0,88455.0,0.00844451]
[1767133605045,6.832e-05,88462.0,88454.0,0.01130531]
[1767133606731,6.832e-05,88462.0,88455.0,0.01130518]
[1767133607973,6.832e-05,88462.0,88454.0,0.01130531]
[1767133608180,6.832e-05,88462.0,88455.0,0.01130518]
[1767133608384,6.832e-05,88462.0,88451.0,0.14333]
[1767133608385,0.000549,88455.0,88451.0,0.14333]
[1767133608704,0.000549,88455.0,88450.0,0.01130582]
[1767133608842,6.832e-05,88462.0,88451.0,0.01130569]
[1767133609044,6.832e-05,88462.0,88450.0,0.01130582]
[1767133609868,0.4493047,88460.0,88450.0,0.01130582]
[1767133610520,0.44936278,88460.0,88450.0,0.01130582]
[1767133610652,0.44936278,88460.0,88449.0,0.06783565]
[1767133610857,0.44936278,88460.0,88450.0,0.01130582]
[1767133611095,0.44936278,88460.0,88449.0,0.01130595]
[1767133612658,0.44936278,88460.0,88448.0,0.01132]
[1767133612861,0.44936278,88460.0,88448.0,0.02262607]
[1767133614161,0.44936278,88460.0,88449.0,0.01130595]
[1767133614585,0.44936278,88460.0,88448.0,0.02262607]
[1767133615593,0.44936278,88460.0,88449.0,0.01130595]
[1767133615816,0.44936278,88460.0,88448.0,0.02262607]
[1767133616014,0.44936278,88460.0,88449.0,0.01130595]
[1767133616836,0.44936278,88460.0,88450.0,0.01130582]
[1767133617955,0.44936278,88460.0,88452.0,0.01130556]
[1767133618116,0.4494311,88462.0,88452.0,0.01130556]
[1767133618325,0.4494311,88462.0,88451.0,0.01130569]
[1767133619280,0.4494311,88462.0,88452.0,0.01130556]
[1767133620226,0.4494311,88462.0,88453.0,0.01130543]
[1767133620421,0.4494311,88462.0,88454.0,0.01130531]
[1767133620675,0.4494311,88462.0,88453.0,0.01130543]
[1767133620851,0.4494311,88462.0,88454.0,0.01130531]
[1767133621050,6.832e-05,88462.0,88454.0,0.01130531]
[1767133621250,6.832e-05,88462.0,88453.0,0.01130543]
[1767133621452,6.832e-05,88462.0,88454.0,0.01130531]
[1767133621877,6.832e-05,88462.0,88453.0,0.01130543]
[1767133622233,6.832e-05,88462.0,88455.0,0.01130518]
[1767133623161,6.832e-05,88462.0,88454.0,0.01130531]
[1767133623491,6.832e-05,88462.0,88455.0,0.01130518]
[1767133624651,6.832e-05,88462.0,88456.0,0.01130505]
[1767133625500,6.832e-05,88462.0,88455.0,0.01130518]
[1767133625957,0.0001483,88471.0,88466.0,0.01130377]
[1767133626161,0.0001483,88471.0,88465.0,0.0113039]
[1767133626459,0.0001483,88471.0,88466.0,0.01130377]
[1767133627108,0.0001483,88471.0,88465.0,0.0113039]
[1767133627858,3e-07,88471.0,88465.0,0.0113039]
[1767133628158,3e-07,88471.0,88466.0,0.01130377]
[1767133628356,3e-07,88471.0,88467.0,0.14712]
[1767133628527,3e-07,88471.0,88467.0,0.14707816]
[1767133628719,3e-07,88471.0,88469.0,0.14712]
[1767133633181,3e-07,88471.0,88468.0,0.01130352]
[1767133638531,3e-07,88471.0,88468.0,0.01126089]
[1767133639714,3e-07,88471.0,88468.0,0.06777803]
[1767133640227,3e-07,88471.0,88469.0,0.05651636]
[1767133644769,3e-07,88471.0,88470.0,0.13556]
[1767133644987,0.14196773,88484.0,88475.0,0.01130262]
[1767133645203,0.14196773,88484.0,88476.0,0.0113025]
[1767133645613,0.14196773,88484.0,88475.0,0.01130262]
[1767133646197,0.14196773,88484.0,88475.0,0.00854953]
[1767133646605,0.0001483,88489.0,88478.0,0.01130224]
[1767133646606,0.1466483,88489.0,88478.0,0.01130224]
[1767133646762,0.1466483,88489.0,88476.0,0.0113025]
[1767133646763,0.000147,88478.0,88476.0,0.0113025]
[1767133646973,0.000147,88478.0,88475.0,0.14410953]
[1767133647300,0.1466483,88489.0,88476.0,0.0113025]
[1767133648069,0.1466483,88489.0,88475.0,0.14410953]
[1767133649697,0.1466483,88489.0,88476.0,0.0113025]
[1767133650124,0.1466483,88489.0,88475.0,0.14410953]
[1767133650525,0.1466483,88489.0,88476.0,0.0113025]
[1767133650758,0.1466483,88489.0,88475.0,0.1356668]
[1767133650921,0.1466483,88489.0,88475.0,0.14696942]
[1767133651124,0.1466483,88489.0,88475.0,0.1356668]
[1767133651659,0.1466483,88489.0,88475.0,0.14696942]
[1767133651860,0.1466483,88489.0,88476.0,0.0113025]
[1767133652008,0.1466483,88489.0,88475.0,0.14696942]
[1767133652663,0.1466483,88489.0,88475.0,0.1356668]
[1767133653339,0.1466483,88489.0,88475.0,0.14696942]
[1767133653726,0.1466483,88489.0,88475.0,0.1356668]
[1767133654197,0.15794913,88489.0,88475.0,0.1356668]
[1767133654403,0.1466483,88489.0,88475.0,0.1356668]
[1767133655839,0.1466483,88489.0,88475.0,0.14696942]
[1767133657214,0.1466483,88489.0,88476.0,0.0113025]
[1767133657365,0.1466483,88489.0,88475.0,0.14696942]
[1767133657743,0.1466483,88489.0,88475.0,0.1356668]
[1767133659050,0.1466483,88489.0,88475.0,0.14696942]
[1767133659455,0.1466483,88489.0,88475.0,0.1356668]
[1767133659771,0.1466483,88489.0,88475.0,0.14696942]
[1767133659959,0.1466483,88489.0,88475.0,0.1356668]
[1767133660205,0.1466483,88489.0,88475.0,0.14696942]
[1767133660414,0.1465,88488.0,88476.0,0.01132]
[1767133662007,0.44936278,88486.0,88476.0,0.01132]
[1767133662616,0.44936278,88486.0,88476.0,0.00846005]
[1767133663853,0.1465,88488.0,88476.0,0.00846005]
[1767133664577,0.1465,88488.0,88476.0,0.01976255]
[1767133665204,0.1465,88488.0,88477.0,0.01130237]
[1767133665441,0.1465,88488.0,88476.0,0.01976255]
[1767133665614,0.1465,88488.0,88477.0,0.01130237]
[1767133665817,0.1465,88488.0,88476.0,0.01976255]
[1767133666221,0.1465,88488.0,88477.0,0.01130237]
[1767133667476,0.1465,88488.0,88478.0,0.01130224]
[1767133667683,0.1465,88488.0,88477.0,0.01130237]
[1767133668333,0.1465,88488.0,88478.0,0.01130224]
[1767133668630,0.1465,88488.0,88477.0,0.01130237]
[1767133669573,0.1465,88488.0,88478.0,0.01130224]
[1767133669781,0.1465,88488.0,88477.0,0.01130237]
[1767133669921,0.1465,88488.0,88478.0,0.01130224]
[1767133670747,0.1465,88488.0,88477.0,0.01130237]
[1767133672155,0.1465,88488.0,88476.0,0.01976255]
[1767133673968,0.1465,88488.0,88477.0,0.01130237]
[1767133674295,0.1465,88488.0,88478.0,0.01130224]
[1767133675502,0.1465,88488.0,88477.0,0.01130237]
[1767133675666,0.1465,88488.0,88478.0,0.01130224]
[1767133675869,0.1465,88488.0,88477.0,0.01130237]
[1767133676385,0.1465,88488.0,88478.0,0.01130224]
[1767133677519,0.1465,88488.0,88476.0,0.01976255]
[1767133677920,0.1465,88488.0,88478.0,0.01130224]
[1767133678656,0.1465,88488.0,88477.0,0.01130237]
[1767133678971,0.1465,88488.0,88478.0,0.01130224]
[1767133679225,0.1465,88488.0,88477.0,0.00844254]
[1767133680405,0.1465,88488.0,88476.0,0.01976255]
[1767133680631,0.1465,88488.0,88478.0,0.01130224]
[1767133681403,0.1465,88488.0,88477.0,0.01130237]
[1767133681785,0.1465,88488.0,88478.0,0.01130224]
[1767133682433,0.1465,88488.0,88477.0,0.01130237]
[1767133682612,0.17182651,88488.0,88477.0,0.01130237]
[1767133683212,0.17182651,88488.0,88476.0,0.0113025]
[1767133683878,0.17182651,88488.0,88475.0,0.0001068]
[1767133684128,0.17182651,88488.0,88475.0,0.01140942]
[1767133684520,4.02e-05,88475.0,88473.0,0.01132]
[1767133684737,4.02e-05,88475.0,88473.0,0.0114263]
[1767133684921,0.14588,88482.0,88475.0,0.01130262]
[1767133685126,0.14588,88482.0,88474.0,0.01130275]
[1767133685523,0.14588,88488.0,88474.0,0.01130275]
[1767133685718,0.14588,88488.0,88473.0,0.0114263]
[1767133685921,0.14588,88488.0,88473.0,0.02272918]
[1767133688012,0.14588,88488.0,88474.0,0.01130275]
[1767133688462,0.01132,88487.0,88473.0,0.02272918]
[1767133688671,0.01132,88487.0,88474.0,0.01130275]
[1767133688836,0.01132,88487.0,88473.0,0.02272918]
[1767133689252,0.01132,88487.0,88474.0,0.01130275]
[1767133689505,0.44903975,88483.0,88473.0,0.02272918]
[1767133689671,0.01132,88487.0,88474.0,0.01130275]
[1767133689834,0.01132,88487.0,88475.0,0.01130262]
[1767133690035,0.01132,88487.0,88474.0,0.01130275]
[1767133690240,0.01132,88487.0,88473.0,0.02272918]
[1767133690438,0.01132,88487.0,88474.0,0.01130275]
[1767133690645,0.01132,88487.0,88473.0,0.0114263]
[1767133691065,0.01132,88487.0,88473.0,0.02272918]
[1767133691273,0.01132,88487.0,88474.0,0.01130275]
[1767133691478,0.15289,88487.0,88474.0,0.01130275]
[1767133692266,0.15289,88487.0,88473.0,0.02272918]
[1767133692437,0.15289,88487.0,88473.0,0.07924329]
[1767133692638,0.15289,88487.0,88473.0,0.02272918]
[1767133693164,0.15289,88487.0,88474.0,0.01130275]
[1767133693556,0.15289,88487.0,88473.0,0.02272918]
[1767133693772,0.15289,88487.0,88474.0,0.01130275]
[1767133693981,0.15289,88487.0,88473.0,0.02272918]
[1767133695347,0.15289,88487.0,88473.0,0.00856635]
[1767133697900,0.01132,88487.0,88474.0,0.14094]
[1767133698080,0.01132,88487.0,88474.0,0.15224275]
[1767133698698,0.01132,88487.0,88475.0,0.01130262]
[1767133700036,0.01132,88487.0,88474.0,0.15224275]
[1767133700421,0.01132,88487.0,88474.0,0.14094]
[1767133700621,0.01132,88487.0,88474.0,0.15224275]
[1767133701543,0.01132,88487.0,88474.0,0.14094]
[1767133701746,0.01132,88487.0,88474.0,0.15224275]
[1767133701961,0.15105,88487.0,88474.0,0.01130275]
[1767133702963,0.20108708,88487.0,88473.0,0.01140918]
[1767133708170,0.13973,88486.0,88473.0,0.0001063]
[1767133708368,0.13973,88486.0,88473.0,0.01140918]
[1767133709333,0.13973,88486.0,88473.0,0.0001063]
[1767133709550,0.13973,88486.0,88473.0,0.01140918]
[1767133709725,0.13973,88486.0,88473.0,0.0001063]
[1767133709902,0.13973,88486.0,88473.0,0.01140918]
[1767133710295,0.13973,88486.0,88473.0,0.0001063]
[1767133710489,0.13973,88486.0,88473.0,0.01140918]
[1767133711154,0.13973,88486.0,88474.0,0.01130275]
[1767133711343,0.13973,88486.0,88473.0,0.01140918]
[1767133711974,0.13973,88486.0,88474.0,0.01130275]
[1767133712149,0.13973,88486.0,88473.0,0.01140918]
[1767133712360,0.13973,88486.0,88474.0,0.01130275]
[1767133712559,0.13973,88486.0,88474.0,0.00844283]
[1767133712753,0.13973,88486.0,88473.0,0.01140918]
[1767133712937,0.13973,88486.0,88474.0,0.01130275]
[1767133713318,0.13973,88486.0,88475.0,0.01130262]
[1767133713563,0.13973,88486.0,88474.0,0.01130275]
[1767133713760,0.13973,88486.0,88473.0,0.01140918]
[1767133713964,0.44903975,88484.0,88473.0,0.0001063]
[1767133714881,0.44903975,88484.0,88473.0,0.01140918]
[1767133716674,0.44903975,88484.0,88473.0,0.0001063]
[1767133716894,0.44903975,88484.0,88473.0,0.01140918]
[1767133717458,0.44903975,88484.0,88473.0,0.0001063]
[1767133718430,0.44903975,88484.0,88473.0,0.01140918]
[1767133718818,0.44903975,88484.0,88473.0,0.0001063]
[1767133719402,0.44903975,88484.0,88473.0,0.01140918]
[1767133720309,0.44903975,88484.0,88473.0,0.0001063]
[1767133720511,0.44903975,88484.0,88473.0,0.01140918]
[1767133720781,0.06793436,88483.0,88473.0,0.0001063]
[1767133724813,0.44903975,88484.0,88473.0,0.0001063]
[1767133725019,0.44903975,88484.0,88473.0,0.01140918]
[1767133725422,0.44903975,88484.0,88473.0,0.0001063]
[1767133726455,0.44903975,88484.0,88473.0,0.01140918]
[1767133726657,0.44903975,88484.0,88473.0,0.0001063]
[1767133727681,0.52375468,88484.0,88473.0,0.0001063]
[1767133729557,0.52375468,88484.0,88473.0,0.01140918]
[1767133730374,0.52375468,88484.0,88473.0,0.0001063]
[1767133730375,0.01130198,88480.0,88473.0,0.0001063]
[1767133730574,4e-05,88473.0,88472.0,0.01132]
[1767133730802,4e-05,88473.0,88472.0,0.01142639]
[1767133731010,0.14714,88477.0,88472.0,0.01142639]
[1767133731210,0.01130224,88478.0,88472.0,0.01142639]
[1767133731426,0.0678133,88479.0,88472.0,0.01142639]
[1767133731573,0.01130224,88478.0,88472.0,0.01138639]
[1767133731976,0.44903975,88490.0,88478.0,0.000509]
[1767133732215,0.01130109,88487.0,88472.0,0.15521639]
[1767133732413,0.44903975,88482.0,88472.0,0.15521639]
[1767133732619,0.44913637,88482.0,88472.0,0.1665194]
[1767133732838,0.44913637,88482.0,88473.0,0.01130288]
[1767133732990,0.44913637,88482.0,88472.0,0.15521639]
[1767133733886,0.44913637,88482.0,88472.0,0.22303427]
[1767133734086,0.44913637,88482.0,88472.0,0.1665194]
[1767133734748,0.44913637,88482.0,88472.0,0.1552394]
[1767133735292,0.44913637,88482.0,88472.0,0.14393639]
[1767133735512,0.44913637,88482.0,88472.0,0.1552394]
[1767133735715,0.44913637,88482.0,88472.0,0.14393639]
[1767133741143,0.44913637,88482.0,88472.0,0.00010639]
[1767133742088,0.4604381,88482.0,88472.0,0.00010639]
[1767133742236,0.44913637,88482.0,88472.0,0.00010639]
[1767133742434,0.4604381,88482.0,88472.0,0.00010639]
[1767133742632,0.01130198,88480.0,88472.0,3.9e-07]
[1767133742860,0.01130186,88481.0,88472.0,3.9e-07]
[1767133743060,0.4604381,88482.0,88472.0,3.9e-07]
[1767133743663,0.14850224,88478.0,88472.0,3.9e-07]
[1767133743864,0.1372,88476.0,88472.0,3.9e-07]
[1767133744080,0.1485025,88476.0,88472.0,3.9e-07]
[1767133744487,0.1372,88476.0,88472.0,3.9e-07]
[1767133745331,0.1485025,88476.0,88472.0,3.9e-07]
[1767133745539,0.1372,88474.0,88472.0,3.9e-07]
[1767133745713,0.1372,88473.0,88472.0,3.9e-07]
[1767133746113,0.06781619,88475.0,88472.0,3.9e-07]
[1767133746333,0.22604086,88481.0,88472.0,3.9e-07]
[1767133746334,0.1372,88481.0,88475.0,0.000105]
[1767133746535,0.1372,88479.0,88475.0,0.000105]
[1767133746699,0.01132,88480.0,88475.0,0.000105]
[1767133746895,0.01132,88480.0,88472.0,3.9e-07]
[1767133748602,0.01132,88480.0,88467.0,0.15506379]
[1767133748802,0.01132,88480.0,88467.0,0.15792364]
[1767133749700,0.01132,88480.0,88467.0,0.14662]
[1767133749900,0.01132,88480.0,88467.0,0.15792364]
[1767133750102,0.01132,88480.0,88467.0,0.14662]
[1767133753669,0.01132,88480.0,88467.0,0.15792364]
[1767133754670,0.01132,88480.0,88467.0,0.14662]
[1767133755625,0.01132,88480.0,88467.0,0.15792364]
[1767133755862,0.01132,88480.0,88467.0,0.14662]
[1767133756295,0.46045637,88480.0,88467.0,0.14662]
[1767133756797,0.47175835,88480.0,88467.0,0.14662]
[1767133756995,0.01132,88480.0,88467.0,0.14662]
[1767133757156,0.46045637,88480.0,88467.0,0.14662]
[1767133759355,0.46045637,88480.0,88467.0,0.15792364]
[1767133759562,0.46045637,88480.0,88467.0,0.14662]
[1767133759822,0.46045637,88480.0,88467.0,0.15792364]
[1767133760613,0.46045637,88480.0,88467.0,0.14662]
[1767133761485,0.46045637,88480.0,88467.0,0.15792364]
[1767133762108,0.46045637,88480.0,88467.0,0.14662]
[1767133764506,0.47175835,88480.0,88467.0,0.14662]
[1767133764694,0.46045637,88480.0,88467.0,0.14662]
[1767133765090,0.46045637,88480.0,88467.0,0.14375976]
[1767133768581,0.46045637,88480.0,88467.0,0.1550634]
[1767133768803,0.46045637,88480.0,88467.0,0.15516979]
[1767133770033,0.46045637,88480.0,88467.0,0.14386615]
[1767133772671,0.46045637,88480.0,88469.0,0.01130339]
[1767133772875,0.46045637,88480.0,88468.0,0.01130352]
[1767133773175,0.46045637,88480.0,88467.0,0.15516979]
[1767133773370,0.46045637,88480.0,88468.0,0.01130352]
[1767133773592,0.46045637,88480.0,88467.0,0.15516979]
[1767133773789,0.46045637,88480.0,88468.0,0.01130352]
[1767133774807,0.46045637,88480.0,88467.0,0.15516979]
[1767133775066,0.46045637,88480.0,88467.0,0.14386615]
[1767133775286,0.46045637,88480.0,88467.0,0.15516979]
[1767133776262,0.46045637,88480.0,88469.0,0.01130339]
[1767133776432,0.46045637,88480.0,88468.0,0.06782106]
[1767133776763,0.46045637,88480.0,88468.0,0.01130352]
[1767133777362,0.46045637,88480.0,88467.0,0.15516979]
[1767133777930,0.46045637,88480.0,88468.0,0.01130352]
[1767133778506,0.46045637,88480.0,88467.0,0.15516979]
[1767133778853,0.46045637,88480.0,88468.0,0.01130352]
[1767133779623,0.46045637,88480.0,88467.0,0.14386615]
[1767133779848,0.46045637,88480.0,88467.0,0.15516979]
[1767133780452,0.46045637,88480.0,88467.0,0.14386615]
[1767133782951,0.44913637,88477.0,88467.0,0.00010639]
[1767133783148,0.58979637,88477.0,88467.0,0.00010639]
[1767133784500,0.14066,88477.0,88467.0,0.00010639]
[1767133784698,0.58979637,88477.0,88467.0,0.00010639]
[1767133785338,0.14066,88476.0,88467.0,0.00010639]
[1767133787061,0.14066,88476.0,88462.0,0.00855026]
[1767133789009,0.14066,88476.0,88463.0,0.01130416]
[1767133789629,0.14070022,88476.0,88462.0,0.01130428]
[1767133789797,0.14070022,88476.0,88463.0,0.0565208]
[1767133789977,0.14070022,88476.0,88463.0,0.01130416]
[1767133790183,0.44913637,88473.0,88464.0,0.01130403]
[1767133790396,0.01132,88472.0,88464.0,0.01130403]
[1767133790594,0.01132,88472.0,88463.0,0.01130416]
[1767133791196,0.01132,88472.0,88464.0,0.01130403]
[1767133791528,0.01132,88472.0,88463.0,0.01130416]
[1767133792947,0.01132,88472.0,88464.0,0.01130403]
[1767133793307,0.01132,88472.0,88465.0,0.0113039]
[1767133793507,0.01132,88472.0,88464.0,0.01130403]
[1767133794688,0.01132,88472.0,88465.0,0.0113039]
[1767133794967,0.01132,88472.0,88464.0,0.01130403]
[1767133796754,0.01132,88472.0,88463.0,0.01130416]
[1767133797072,0.01132,88472.0,88462.0,0.01130428]
[1767133797979,0.01132,88472.0,88463.0,0.01130416]
[1767133798343,0.01132,88472.0,88462.0,0.01130428]
[1767133800324,0.01132,88472.0,88463.0,0.01130416]
[1767133800617,0.01132,88472.0,88464.0,0.01130403]
[1767133800823,0.01132,88472.0,88465.0,0.0113039]
[1767133801020,0.01132,88472.0,88466.0,0.01130377]
[1767133801217,0.011215,88472.0,88466.0,0.01130377]
[1767133801369,0.011215,88472.0,88465.0,0.0113039]
[1767133801582,0.011215,88472.0,88466.0,0.01130377]
[1767133802927,0.011215,88472.0,88467.0,0.01130364]
[1767133803622,0.011215,88472.0,88466.0,0.01130377]
[1767133803925,0.011215,88472.0,88467.0,0.00844337]
[1767133804134,0.011215,88472.0,88466.0,0.01130377]
[1767133805947,0.011215,88472.0,88465.0,0.0113039]
[1767133806357,0.011215,88472.0,88464.0,0.01130403]
[1767133807184,0.011215,88472.0,88465.0,0.0113039]
[1767133807344,0.011215,88472.0,88466.0,0.01130377]
[1767133807957,0.011215,88472.0,88465.0,0.0113039]
[1767133808969,0.011215,88472.0,88464.0,0.01130403]
[1767133809696,0.011215,88472.0,88465.0,0.0113039]
[1767133810442,0.011215,88472.0,88465.0,0.06782278]
[1767133810623,0.011215,88472.0,88466.0,0.14624]
[1767133810811,0.011215,88472.0,88466.0,0.15754377]
[1767133811209,0.011215,88472.0,88466.0,0.14624]
[1767133811974,4.022e-05,88476.0,88473.0,0.14624]
[1767133812193,2.2e-07,88476.0,88473.0,0.14624]
[1767133813295,2.2e-07,88476.0,88468.0,0.01130352]
[1767133813296,2.2e-07,88476.0,88466.0,0.01130377]
[1767133813498,2.2e-07,88476.0,88469.0,0.14624]
[1767133813699,2.2e-07,88476.0,88471.0,0.14624]
[1767133816158,2.2e-07,88476.0,88471.0,0.15754313]
[1767133816358,2.2e-07,88476.0,88471.0,0.14624]
[1767133818800,2.2e-07,88476.0,88471.0,0.15754313]
[1767133818983,2.2e-07,88476.0,88471.0,0.14337994]
[1767133819405,2.2e-07,88476.0,88471.0,0.15468307]
[1767133819757,2.2e-07,88476.0,88472.0,0.13883]
[1767133819954,2.2e-07,88476.0,88472.0,0.17276851]
[1767133821997,2.2e-07,88476.0,88472.0,0.18407152]
[1767133822173,2.2e-07,88476.0,88472.0,0.17276851]
[1767133822357,2.2e-07,88476.0,88472.0,0.15013301]
[1767133822563,2.2e-07,88476.0,88473.0,0.03393851]
[1767133826010,2.2e-07,88476.0,88473.0,0.0311029]
[1767133826512,2.2e-07,88476.0,88473.0,0.02841794]
[1767133827696,2.2e-07,88476.0,88473.0,0.17855082]
[1767133828168,2.2e-07,88476.0,88473.0,0.15013288]
[1767133828370,2.2e-07,88476.0,88474.0,0.03393851]
[1767133828806,2.2e-07,88476.0,88475.0,0.13883]
[1767133829384,2.2e-07,88476.0,88475.0,0.16145083]
[1767133830119,2.2e-07,88476.0,88475.0,0.02262083]
[1767133833731,2.2e-07,88476.0,88475.0,0.01976094]
[1767133838808,0.01132,88489.0,88476.0,0.0113025]
[1767133839027,0.01132,88489.0,88475.0,0.16989356]
[1767133839221,0.01132,88489.0,88475.0,0.13883]
[1767133839436,0.01132,88489.0,88476.0,0.03393786]
[1767133839868,0.01132,88489.0,88477.0,0.01130237]
[1767133840576,0.01132,88489.0,88476.0,0.04524036]
[1767133840878,0.01132,88489.0,88477.0,0.01130237]
[1767133841657,0.01132,88489.0,88470.0,0.6752478]
[1767133841658,0.14306,88497.0,88489.0,0.00051]
[1767133841983,0.01155897,88498.0,88492.0,0.01130045]
[1767133842127,0.01155897,88498.0,88493.0,0.01130032]
[1767133842325,0.01155897,88498.0,88491.0,0.01130058]
[1767133842326,0.01155897,88498.0,88492.0,0.01130045]
[1767133842641,0.01155897,88498.0,88495.0,0.01130007]
[1767133842642,0.01104897,88498.0,88495.0,0.01130007]
[1767133842840,0.01132,88502.0,88495.0,0.01130007]
[1767133843081,0.01132,88502.0,88496.0,0.01129994]
[1767133843641,0.01132,88502.0,88497.0,0.0113002]
[1767133843841,0.01132,88502.0,88497.0,0.02260001]
[1767133844044,0.01132,88502.0,88497.0,0.0113002]
[1767133845297,0.01132,88502.0,88497.0,0.1501302]
[1767133849217,0.01132,88502.0,88497.0,0.13883]
[1767133849363,0.01132,88508.0,88498.0,0.01132]
[1767133850615,0.01132,88508.0,88498.0,0.16067]
[1767133850616,0.0118469,88508.0,88498.0,0.16067]
[1767133851226,0.0118469,88508.0,88498.0,0.01132]
[1767133851437,0.1488069,88508.0,88498.0,0.010771]
[1767133851607,0.1488069,88508.0,88492.0,0.14935]
[1767133851608,0.13696,88505.0,88492.0,0.01132]